Cogmind - Beta 13 @@@ ROGUE MODE // 2024.04.01 @ 21:02:06 Player: sweetanimebabe Result: Destroyed by S-10 Pest with Light Assault Rifle Performance ------------- Evolutions (2) 1000 Regions Visited (3) 600 Robots Destroyed (15) 75 Value Destroyed (368) 368 Prototype IDs (1) 20 Alien Tech Used (0) 0 Bonus (0) 0 TOTAL SCORE: 2063 Bonus ------- None Cogmind --------- Core Integrity 0/550 Matter 300/300 Energy 100/100 System Corruption 0% Temperature Cool (0) Movement Core (50) Location -8/Materials Parts ------- > --- POWER (2) -------- (None) > --- PROPULSION (4) --- (None) > --- UTILITY (3) ------ (None) > --- WEAPON (2) ------- Mining Claw > --- INVENTORY (5) ---- Faulty Heavy Ion Engine Deuterium Engine Cryofiber Web ECM Suite Peak State ------------ > --- POWER ------------ Light Nuclear Core Light Nuclear Core > --- PROPULSION ------- Advanced Treads > --- UTILITY ---------- (None) > --- WEAPON ----------- Particle Gun > --- INVENTORY -------- Heavy Ion Engine Deuterium Engine Cryofiber Web ECM Suite Mining Claw [Rating: 12] Favorites ----------- Power Light Ion Engine Engine Light Ion Engine Power Core Light Nuclear Core Propulsion Flight Unit Treads Light Treads Hover Unit Improved Hover Unit Flight Unit Flight Unit Utility Utility Shielding Device ECM Suite Storage Small Storage Unit Protection Utility Shielding Weapon Beam Rifle Energy Gun Beam Rifle Energy Cannon Light EM Pulse Cannon Ballistic Gun Light Assault Rifle Special Weapon Plasma Cutter Slashing Weapon Mining Claw Build | -11 -10 -9 -8 ------- Run | Yrd Mat Mat Mat Slots Evolved 4 | . . 2 2 Power 1 | . . . 1 Propulsion 2 | . . 1 1 Utility 1 | . . 1 . Weapon . | . . . . Parts Attached 52 | 4 8 21 19 Power 13 | 1 . 5 7 Engine 10 | 1 . 5 4 Core 3 | . . . 3 Reactor . | . . . . Propulsion 10 | 2 3 4 1 Treads 3 | 2 . . 1 Leg . | . . . . Wheel . | . . . . Hover 1 | . . 1 . Flight 6 | . 3 3 . Utility 11 | . 2 3 6 Device 6 | . 1 . 5 Storage 1 | . . 1 . Processor . | . . . . Hackware . | . . . . Protection 4 | . 1 2 1 Artifact . | . . . . Weapon 18 | 1 3 9 5 Energy Gun 10 | 1 3 3 3 Energy Cannon 2 | . . 1 1 Ballistic Gun 3 | . . 3 . Ballistic Cannon . | . . . . Launcher . | . . . . Special Weapon 2 | . . 2 . Impact Weapon . | . . . . Slashing Weapon 1 | . . . 1 Piercing Weapon . | . . . . Special Melee Weapon . | . . . . Unidentified Prototypes 1 | . . . 1 Parts Lost 24 | . 2 10 12 Power 4 | . . 1 3 Propulsion 6 | . 1 3 2 Utility 4 | . . 1 3 Weapon 10 | . 1 5 4 Highest Loss Streak 6 | . 2 6 5 To Critical Strikes . | . . . . Average Slot Usage (%) 48 | . 63 54 32 Engine 8 | . 14 10 3 Treads 4 | . 17 . 2 Flight 8 | . 10 12 1 Device 8 | . 4 9 10 Protection 7 | . 4 9 5 Energy Gun 6 | . 10 3 7 Ballistic Gun 1 | . . 3 . Special Weapon 1 | . . 3 . Naked Turns . | . . . . Heaviest Build 17 | 7 8 17 16 Greatest Support 40 | 40 40 8 22 Greatest Overweight (x) 3 | 2 . 2 3 Average Overweight (x) . | . . . . Largest Inventory Capacity 8 | 5 5 8 5 Average Capacity 5 | 5 5 5 5 Most Carried 5 | . 5 5 5 Average Carried 2 | . 1 2 3 Final Capacity 5 | 5 5 5 5 Final Carried 5 | . 5 4 4 Class Distribution -------------------- 94% | Mutant 5% | Scavenger-Mutant Dominant Class ---------------- Mutant | -10/Materials Mutant | -9/Materials Mutant | -8/Materials Resources | -11 -10 -9 -8 ----------- Run | Yrd Mat Mat Mat Matter Collected 637 | 183 99 165 190 Remotely . | . . . . Salvage Created 500 | . 161 221 118 Parts 30 | . 8 11 11 Haulers Intercepted . | . . . . Recyclers Shooed 1 | . . 1 . Parts Field Recycled . | . . . . Retrieved Matter . | . . . . Parts Self-Destructed . | . . . . Prevented . | . . . . Kills | -11 -10 -9 -8 ------- Run | Yrd Mat Mat Mat Combat Hostiles Destroyed 12 | . 4 6 2 Melee 1 | . . . 1 Guns 7 | . 3 3 1 Cannons 3 | . . 3 . Classes Destroyed 5 | . 3 2 . Recycler 2 | . 1 1 . Mechanic 1 | . . 1 . Swarmer 5 | . 3 2 . Grunt 5 | . 1 3 1 Sentry 2 | . . 1 1 Best Kill Streak 3 | . 2 3 1 Combat Bots Only 3 | . 2 3 1 Max Kills in Single Turn 1 | . 1 1 1 Gunslinging . | . . . . Exploded . | . . . . Melee 1 | . . . 1 Uniques/NPCs Destroyed . | . . . . Combat | -11 -10 -9 -8 -------- Run | Yrd Mat Mat Mat Hostile Shots Fired 293 | . 46 106 141 Missed 90 | . 15 41 34 Damage Taken 2671 | . 315 949 1407 Core 1005 | . 103 347 555 Absorbed by Shields 92 | . . . 92 Redirected to Shielding 50 | . . 6 44 Regen/Repaired (Parts) 10 | . . 10 . Core Remaining (%) 57 | 100 58 13 . Volleys Fired 67 | . 19 39 9 Largest 2 | . 2 2 2 Hottest 112 | . 80 100 112 Shots Fired 87 | . 22 51 14 Gun 76 | . 22 40 14 Cannon . | . . . . Launcher . | . . . . Special 11 | . . 11 . Kinetic 20 | . . 20 . Thermal 38 | . 3 21 14 Explosive . | . . . . Electromagnetic 29 | . 19 10 . Robot Hit Streak 6 | . 4 6 3 Robot Miss Streak 6 | . 6 6 3 Penetration Max . | . . . . Secondary Targets 1 | . . 1 . Max Gunslinging Chain 1 | . . 1 . Shots Hit Robots 58 | . 10 37 11 Core Hits 34 | . 6 24 4 Critical Kills . | . . . . Critical Parts Destroyed . | . . . . Critical Strikes . | . . . . Melee Attacks 5 | . . . 5 Impact . | . . . . Slashing 5 | . . . 5 Piercing . | . . . . Sneak Attacks . | . . . . Combat Hostiles . | . . . . Follow-up Attacks . | . . . . Damage Inflicted 913 | . 134 570 209 Guns 571 | . 133 322 116 Cannons . | . . . . Explosions 96 | . . 96 . Melee 73 | . . . 73 Ramming 23 | . 1 2 20 Kinetic 89 | . . 89 . Thermal 413 | . 32 265 116 Explosive 96 | . . 96 . Electromagnetic 219 | . 101 118 . Impact . | . . . . Slashing 73 | . . . 73 Piercing . | . . . . Highest Corruption . | . . . . Average Corruption . | . . . . Corruption Purged . | . . . . Corruption Blocked . | . . . . Overload Shots . | . . . . Overflow Damage 31 | . . 31 . Projectiles . | . . . . Explosions 31 | . . 31 . Melee . | . . . . Knockbacks . | . . . . Impact . | . . . . Kinetic . | . . . . Secondary . | . . . . Self-Inflicted Damage 148 | . . 141 7 Shots 2 | . . 2 . Rammed 24 | . 2 1 21 Targets Rammed 24 | . 2 1 21 Kicked . | . . . . Crushed . | . . . . Highest Temperature 302 | . 132 302 78 Average Temperature 77 | . 68 101 28 Received Heat Transfer 1055 | . 111 450 494 Siege Activations . | . . . . Robots Corrupted 1 | . 1 . . Combat Hostiles 1 | . 1 . . Parts Fried 2 | . 2 . . Impact Corruptions . | . . . . Robots Melted . | . . . . Combat Hostiles . | . . . . Parts Melted . | . . . . Heat Transferred 930 | . 75 559 296 Parts Sabotaged . | . . . . Parts Stolen . | . . . . Parts Stripped . | . . . . Power Chain Reactions . | . . . . Alert | -11 -10 -9 -8 ------- Run | Yrd Mat Mat Mat Peak Influence 223 | . 130 223 108 Initial 93 | . . 61 93 Average 72 | . 60 74 86 Maximum Alert Level 1 | . . 1 . Low Security (%) 97 | 100 100 94 100 Level 1 2 | . . 5 . Level 2 . | . . . . Level 3 . | . . . . Level 4 . | . . . . Level 5 . | . . . . High Security . | . . . . Max Security . | . . . . Squads Dispatched 3 | . 2 1 . Investigation 1 | . 1 . . Extermination . | . . . . Reinforcement 2 | . 1 1 . Assault . | . . . . Garrison . | . . . . Intercept . | . . . . Searches Triggered . | . . . . Construction Impeded . | . . . . Haulers Reinforced . | . . . . Active Scanning Responses . | . . . . Cargo Convoy Interrupts . | . . . . Stealth | -11 -10 -9 -8 --------- Run | Yrd Mat Mat Mat Distress Signals 3 | . . 2 1 Communications Jammed . | . . . . Distress Signals . | . . . . Times Spotted 61 | . 18 29 14 Peak Tracking Total 10 | . 7 10 6 Tactical Retreats 10 | . 3 5 2 Traps | -11 -10 -9 -8 ------- Run | Yrd Mat Mat Mat Traps Triggered 1 | . 1 . . Indirectly . | . . . . Trap Hack Attempts . | . . . . Triggered . | . . . . Disarmed . | . . . . Reprogrammed . | . . . . Reused . | . . . . Traps Extracted . | . . . . Installed . | . . . . Triggered 1 | . 1 . . Machines | -11 -10 -9 -8 ---------- Run | Yrd Mat Mat Mat Machines Disabled 2 | . . 2 . Max in Single Turn 2 | . . 2 . Machines Repaired . | . . . . Machines Dismantled . | . . . . Machines Sabotaged . | . . . . Overloaded Fab Kills . | . . . . Hacking | -11 -10 -9 -8 --------- Run | Yrd Mat Mat Mat Machines Accessed 1 | . . 1 . Terminals . | . . . . Fabricators . | . . . . Repair Stations 1 | . . 1 . Recycling Units . | . . . . Scanalyzers . | . . . . Garrison Access . | . . . . Total Hacks 4 | . . 4 . Successful 2 | . . 2 . Failed 2 | . . 2 . Catastrophic . | . . . . Database Lockouts . | . . . . Manual . | . . . . Terminals . | . . . . Fabricators . | . . . . Repair Stations 4 | . . 4 . Recycling Units . | . . . . Scanalyzers . | . . . . Garrison Access . | . . . . Terminal Hacks . | . . . . Fabricator Hacks . | . . . . Repair Station Hacks 2 | . . 2 . Scan Component 1 | . . 1 . Repair 1 | . . 1 . Recycling Unit Hacks . | . . . . Scanalyzer . | . . . . Garrison Access Hacks . | . . . . Unauthorized Hacks . | . . . . Terminals . | . . . . Fabricators . | . . . . Repair Stations . | . . . . Recycling Units . | . . . . Scanalyzers . | . . . . Garrison Access . | . . . . Data Cores Recovered . | . . . . Used . | . . . . Hacking Detections . | . . . . Full Trace Events . | . . . . Feedback Events . | . . . . Feedback Blocked . | . . . . Robot Schematics Acquired . | . . . . Robots Built . | . . . . Authchips . | . . . . Time . | . . . . Total Robot Build Rating . | . . . . Part Schematics Acquired . | . . . . Parts Built . | . . . . Authchips . | . . . . Time . | . . . . Total Part Build Rating . | . . . . Parts Repaired 1 | . . 1 . Time 36 | . . 36 . Parts Recycled . | . . . . Recycled Matter . | . . . . Retrieved Matter . | . . . . Retrieved Components . | . . . . Parts Scanalyzed . | . . . . Part Schematics Acquired . | . . . . Parts Damaged . | . . . . Bothacking | -11 -10 -9 -8 ------------ Run | Yrd Mat Mat Mat Used RIF Installer . | . . . . Robots Hacked . | . . . . Non-combat . | . . . . Combat . | . . . . Robot Hacks Applied . | . . . . Relay Couplers Released . | . . . . Fabnet Peak Effective % . | . . . . Robots Rewired . | . . . . Allies Hacked . | . . . . Hacks Repelled . | . . . . Allies | -11 -10 -9 -8 -------- Run | Yrd Mat Mat Mat Total Allies . | . . . . Largest Group . | . . . . Highest-Rated Group . | . . . . Highest-Rated Ally . | . . . . Total Orders . | . . . . Ally Attacks . | . . . . Total Damage . | . . . . Kills . | . . . . Allies Corrupted . | . . . . Allies Melted . | . . . . Intel | -11 -10 -9 -8 ------- Run | Yrd Mat Mat Mat Robot Analysis Total . | . . . . Derelict Logs Recovered . | . . . . Drone Launches . | . . . . Drone Recoveries . | . . . . Exploration | -11 -10 -9 -8 ------------- Run | Yrd Mat Mat Mat Turns Passed 1244 | 59 236 534 415 Spaces Moved 1085 | 45 243 545 252 Core 171 | 21 . 14 136 Treads 130 | 24 57 . 49 Legs . | . . . . Wheels . | . . . . Hover 3 | . . 3 . Flight 781 | . 186 528 67 Fastest Speed 37 | 50 37 37 40 Average Speed 73 | 120 65 62 94 Slowest Speed 200 | 160 160 200 200 Overloaded Moves . | . . . . Propulsion Burnouts . | . . . . Robots Hopped 4 | . . 3 1 Cave-ins Triggered . | . . . . Exploration Rate (%) 26 | 3 50 29 23 Regions Visited 3 Branch Regions . Pre-discovered Areas . | . . . . Known Exits Taken . | . . . . Unknown Exits Taken 3 | 1 1 1 . Scrap Searched . | . . . . Spaces Dug . | . . . . Terrain Destroyed 41 | . . 41 . Melee . | . . . . Projectile . | . . . . AOE 41 | . . 41 . Terrain Rammed . | . . . . Walls Destroyed . | . . . . Machines Disabled . | . . . . Actions | -11 -10 -9 -8 --------- Run | Yrd Mat Mat Mat Total 1410 | 48 296 672 394 Wait 140 | . 9 57 74 Move 1075 | 44 242 539 250 Hop 3 | . . 2 1 Pick Up 22 | . 10 3 9 Fast Attach 18 | 4 1 8 5 Attach 23 | . 5 8 10 Detach 10 | . 3 5 2 Swap 11 | . 2 5 4 Drop 12 | . 3 5 4 Fire 67 | . 19 39 9 Melee 5 | . . . 5 Ram 22 | . . 1 21 Kick . | . . . . Crush 2 | . 2 . . Escape Stasis . | . . . . Rewire . | . . . . Trap . | . . . . Miscellaneous . | . . . . Route ------- -11/Scrapyard -10/Materials (discovered 2 exits: *Mat / [*Min]) -9/Materials -8/Materials History --------- Turn | Location | Event 12 | -11/Scrapyard | Discovered new exit (range 16) 60 | -11/Scrapyard | Entered Materials 261 | -10/Materials | Discovered new exit (range 6) 295 | -10/Materials | Discovered new exit (range 3) 296 | -10/Materials | Entered another Materials area 296 | -9/Materials | Evolved 2 slots: Propulsion x1, Utility x1 311 | -9/Materials | Build established: Mutant 366 | -9/Materials | Repaired Corrupted Flight Unit 409 | -9/Materials | Lost 4 parts (2n2w) 737 | -9/Materials | Core integrity fell below 50% 779 | -9/Materials | Lost 6 parts (1p1n1u3w) 816 | -9/Materials | Core integrity fell below 20% 828 | -9/Materials | Discovered new exit (range 5) 830 | -9/Materials | Entered another Materials area 830 | -8/Materials | Evolved 2 slots: Power x1, Propulsion x1 1090 | -8/Materials | Core integrity fell below 50% 1221 | -8/Materials | Core integrity fell below 20% 1245 | -8/Materials | Destroyed by S-10 Pest with Light Assault Rifle Last Messages --------------- G-47 Trooper destroyed. Slug penetrates Wall. K-01 Serf collects debris. Slug penetrates Wall. K-01 Serf collects debris. Critical hit (Burn: +37). Particle Gun destroyed. K-01 Serf collects debris. Slug penetrates Wall. K-01 Serf collects debris. Y-45 Defender destroyed. Acquired 45 matter. K-01 Serf cleans the Terminal. Slug penetrates Wall. K-01 Serf cleans the Terminal. K-01 Serf collects debris. Adv. Treads destroyed. Lgt. Nuclear Core destroyed. Slug penetrates Wall. Wall collapses. Map ----- +----------------------------------------------------+ | ?????????????????????????? # #?????????? | | ?????????????????????????? #####+###?????????? | | ????????????????????????? ????# #???????????? | | ?????????????????????????#####????# #???????????? | | ????????????????????????????????### ###?????????? | | ????????????????????????????????# ########### | | ????????????????????????????????# | | ????????????????????????????????# | | ????????????????????????????????# | | ????????????????????????????????# ########### | | ????????????????????????????????## ##?????????? | | ?????????????????????????????????# #??????????? | | ?????????????????????????????????# #??????????? | | ???????????????#?????????????????# #??????????? | | ???????????????# ????????????????# #??????????? | | ???????????????# ???????????????# #??????????? | | ???????????????# ?????????????## ##?????????? | | ????????? #### ###+########## ########??? | | ???????? | | ???????? T #########?? | | ???????? h #?????????? | | ?????????????##+######s;######### #?????????? | | ????????????????????# s%[ /####+###?????????? | | ????????????????????# =*= #????????????????? | | ????????????????????# ssk "T" #????????????????? | | ????????????????????#=!!@* """ #????????????????? | | ????????????????????#!!k%= #????????????????? | | ????????????????????####[#######????????????????? | | ???????????????????????###??????????????????????? | | ????????????????????????????????????????????????? | | ????????????????????????????????????????????????? | | ????????????????????????????????????????????????? | | ????????????????????????????????????????????????? | | ????????????????????????????????????????????????? | | ????????????????????????????????????????????????? | | ????????????????????????????????????????????????? | | ????????????????????????????????????????????????? | | ????????????????????????????????????????????????? | | ????????????????????????????????????????????????? | | ????????????????????????????????????????????????? | | ????????????????????????????????????????????????? | | ????????????????????????????????????????????????? | | ????????????????????????????????????????????????? | | ????????????????????????????????????????????????? | | ????????????????????????????????????????????????? | | ????????????????????????????????????????????????? | | ????????????????????????????????????????????????? | | ????????????????????????????????????????????????? | | ????????????????????????????????????????????????? | | ????????????????????????????????????????????????? | +----------------------------------------------------+ Best States ------------- Heat Dissipation 31 Energy Generation 23 Energy Capacity 275 Matter Stores 300 Matter Capacity 300 Sight Range 16 Terrain Scan Density 10 ECM Strength 1 Base Temperature (-) 100 Armor Coverage 225 Utility Shielding 33 Evasion (%) 62 Recoil Reduction 2 Item Schematics ----------------- None Robot Schematics ------------------ None Fabricated ------------ Nothing Alien Tech Used ----------------- None Achievements -------------- Power Corrupts Challenges ------------ None Game ------ Seed SuspensionNavigationThruster Manual? 0 Play Time 00:25:18 Cumulative 2.1 hours Start 2024.03.31 @ 13:38:52 End 2024.04.01 @ 21:02:06 Sessions 2 Manual Loads 0 Difficulty Rogue Special Mode None Game No. 4 Rogue 4 Adventurer 0 Explorer 0 Win Type - Total 0 Types 0/0/0/0/0/0/0/0/0 Lore% 0 Gallery% 6 Achievement% 5 Wizard Run 0 Options --------- Layout 1 ASCII 0 Keyboard 0 Movement Numpad Keybinds 0 Fullscreen 1 Font 32/SmallcapsGlow Map View 50x35 Zoom Use 0% Tactical HUD 0 Map Filters NONE Filters NONE Steam 1 RUN: e9ee2155-5b58-4e5c-afff-b0625ea5dd59